Cogmind - Beta 15 @@@ ROGUE MODE // 2025.09.16 @ 14:10:52 Player: IAMTRASHMAN Result: Self-destructed Performance ------------- Evolutions (0) 0 Regions Visited (4) 800 Robots Destroyed (4) 20 Value Destroyed (37) 37 Prototype IDs (23) 460 Alien Tech Used (0) 0 Bonus (385) 385 TOTAL SCORE: 1702 Bonus ------- Follower Combat Kills 85 Aligned with FarCom 300 Cogmind --------- Core Integrity 233/250 Matter 235/300 Energy 250/250 System Corruption 0% Temperature Cool (0) Movement Rolling (130) Ox2 Location -9/Mines Parts ------- > --- POWER (1) -------- Ion Engine > --- PROPULSION (2) --- Compact Wheel Compact Wheel > --- UTILITY (2) ------ Huge Storage Unit Light Armor Plating > --- WEAPON (2) ------- Assault Rifle Assault Rifle > --- INVENTORY (25) --- Ion Engine Light Treads Light Treads Aluminum Leg Aluminum Leg High-capacity Battery (250) High-capacity Battery (250) Seismic Detector Medium Laser Firepult Peak State ------------ > --- POWER ------------ Ion Engine > --- PROPULSION ------- Compact Wheel Compact Wheel > --- UTILITY ---------- Huge Storage Unit Seismic Detector > --- WEAPON ----------- Assault Rifle Assault Rifle > --- INVENTORY -------- Ion Engine Light Treads Light Treads Aluminum Leg Aluminum Leg Light Armor Plating Medium Laser Firepult [Rating: 9] Favorites ----------- Power Ion Engine Engine Ion Engine Propulsion Aluminum Leg Leg Aluminum Leg Wheel Compact Wheel Utility Seismic Detector Device Seismic Detector Storage Small Storage Unit Protection Light Armor Plating Weapon Assault Rifle Ballistic Gun Assault Rifle Build | -11 -10 -10 -10 -9 ------- Run | Yrd Mat Min Exi Min Slots Evolved . | . . . . . Power . | . . . . . Propulsion . | . . . . . Utility . | . . . . . Weapon . | . . . . . Parts Attached 11 | 7 . . 3 1 Power 1 | 1 . . . . Engine 1 | 1 . . . . Core . | . . . . . Reactor . | . . . . . Propulsion 4 | 2 . . 2 . Treads . | . . . . . Leg 2 | 2 . . . . Wheel 2 | . . . 2 . Hover . | . . . . . Flight . | . . . . . Utility 4 | 2 . . 1 1 Device 1 | 1 . . . . Storage 2 | 1 . . 1 . Processor . | . . . . . Hackware . | . . . . . Protection 1 | . . . . 1 Artifact . | . . . . . Weapon 2 | 2 . . . . Energy Gun . | . . . . . Energy Cannon . | . . . . . Ballistic Gun 2 | 2 . . . . Ballistic Cannon . | . . . . . Launcher . | . . . . . Special Weapon . | . . . . . Impact Weapon . | . . . . . Slashing Weapon . | . . . . . Piercing Weapon . | . . . . . Special Melee Weapon . | . . . . . Unidentified Prototypes . | . . . . . Parts Lost . | . . . . . Power . | . . . . . Propulsion . | . . . . . Utility . | . . . . . Weapon . | . . . . . Highest Loss Streak . | . . . . . To Critical Strikes . | . . . . . Average Backups 7 | 3 7 8 8 10 Power . | . 1 1 1 1 Propulsion 3 | 2 4 4 4 4 Utility 1 | . 1 2 1 3 Weapon 1 | . 1 1 1 2 Tool/Special . | . . . . . Unused Backups 7 | . . . . 7 Power 1 | . . . . 1 Propulsion 2 | . . . . 2 Utility 2 | . . . . 2 Weapon 2 | . . . . 2 Tool/Special . | . . . . . Average Slot Usage (%) 100 | . 100 100 100 100 Engine 14 | . 14 14 14 14 Leg 17 | . 28 28 8 . Wheel 10 | . . . 19 28 Device 13 | . 14 14 14 9 Storage 14 | . 14 14 14 14 Ballistic Gun 28 | . 28 28 28 28 Peak Build Rating 9 | 7 7 7 9 9 Average Rating 7 | 5 7 7 8 9 On Entrance 6 | . 7 7 7 9 Naked Turns . | . . . . . Heaviest Build 92 | 15 15 15 90 92 Greatest Support 32 | 20 20 20 32 32 Greatest Overweight (x) 2 | . . . 2 2 Average Overweight (x) . | . . . 1 2 Largest Inventory Capacity 25 | 8 8 8 25 25 Average Capacity 13 | 7 8 8 19 25 Most Carried 11 | 6 8 8 11 11 Average Carried 8 | 3 7 8 8 11 Final Capacity 25 | 8 8 8 25 25 Final Carried 11 | 6 8 8 11 11 Class Distribution -------------------- 100% | Mutant Dominant Class ---------------- Mutant | -10/Materials Mutant | -10/Mines Mutant | -10/Exiles Mutant | -9/Mines Resources | -11 -10 -10 -10 -9 ----------- Run | Yrd Mat Min Exi Min Matter Collected 293 | 226 . 67 . . Remotely . | . . . . . Salvage Created 60 | 22 . 38 . . Parts 11 | 4 . 7 . . Haulers Intercepted . | . . . . . Recyclers Shooed 1 | 1 . . . . Parts Field Recycled . | . . . . . Retrieved Matter . | . . . . . Parts Self-Destructed . | . . . . . Prevented . | . . . . . Kills | -11 -10 -10 -10 -9 ------- Run | Yrd Mat Min Exi Min Combat Hostiles Destroyed 3 | . . 3 . . Guns 3 | . . 3 . . Classes Destroyed 2 | 1 . 1 . . Tunneler 1 | 1 . . . . Swarmer 3 | . . 3 . . Best Kill Streak 3 | 1 . 3 . . Combat Bots Only 3 | . . 3 . . Max Kills in Single Turn 2 | 1 . 2 . . Gunslinging 1 | . . 1 . . Exploded . | . . . . . Melee . | . . . . . Uniques/NPCs Destroyed . | . . . . . Combat | -11 -10 -10 -10 -9 -------- Run | Yrd Mat Min Exi Min Hostile Shots Fired 19 | . . 19 . . Missed 3 | . . 3 . . Hits 16 | . . 16 . . Projectile 16 | . . 16 . . Damage Taken 129 | . . 129 . . Core 17 | . . 17 . . Absorbed by Shields . | . . . . . Core Remaining (%) 100 | 100 . . . . Volleys Fired 8 | 2 . 6 . . Largest 2 | 2 . 2 . . Hottest 40 | 40 . 40 . . Shots Fired 16 | 4 . 12 . . Gun 16 | 4 . 12 . . Cannon . | . . . . . Launcher . | . . . . . Special . | . . . . . Kinetic 16 | 4 . 12 . . Thermal . | . . . . . Explosive . | . . . . . Electromagnetic . | . . . . . Robot Hit Streak 2 | 1 . 2 . . Robot Miss Streak 2 | 1 . 2 . . Penetration Max . | . . . . . Secondary Targets 1 | . . 1 . . Max Gunslinging Chain 1 | . . 1 . . Shots Hit Robots 8 | 2 . 6 . . Core Hits 4 | 1 . 3 . . Critical Kills . | . . . . . Critical Parts Destroyed . | . . . . . Critical Strikes . | . . . . . Melee Attacks . | . . . . . Impact . | . . . . . Slashing . | . . . . . Piercing . | . . . . . Sneak Attacks . | . . . . . Combat Hostiles . | . . . . . Follow-up Attacks . | . . . . . Damage Inflicted 117 | 27 . 90 . . Guns 117 | 27 . 90 . . Cannons . | . . . . . Explosions . | . . . . . Melee . | . . . . . Ramming . | . . . . . Kinetic 117 | 27 . 90 . . Thermal . | . . . . . Explosive . | . . . . . Electromagnetic . | . . . . . Impact . | . . . . . Slashing . | . . . . . Piercing . | . . . . . Highest Corruption . | . . . . . Average Corruption . | . . . . . Corruption Purged . | . . . . . Corruption Blocked . | . . . . . Overload Shots . | . . . . . Overflow Damage . | . . . . . Projectiles . | . . . . . Explosions . | . . . . . Melee . | . . . . . Knockbacks . | . . . . . Impact . | . . . . . Kinetic . | . . . . . Secondary . | . . . . . Self-Inflicted Damage . | . . . . . Shots . | . . . . . Rammed . | . . . . . Targets Rammed . | . . . . . Kicked . | . . . . . Crushed . | . . . . . Highest Temperature . | . . . . . Average Temperature . | . . . . . Received Heat Transfer . | . . . . . Siege Activations . | . . . . . Martial Activations . | . . . . . Shielding Activations . | . . . . . Robots Disrupted . | . . . . . Combat Hostiles . | . . . . . Robots Corrupted . | . . . . . Combat Hostiles . | . . . . . Parts Fried . | . . . . . Impact Corruptions . | . . . . . Robots Melted . | . . . . . Combat Hostiles . | . . . . . Parts Melted . | . . . . . Heat Transferred . | . . . . . Parts Sabotaged . | . . . . . Parts Stolen . | . . . . . Parts Stripped . | . . . . . Power Chain Reactions . | . . . . . Alert | -11 -10 -10 -10 -9 ------- Run | Yrd Mat Min Exi Min Maximum Alert Level . | . . . . . Low Security (%) 100 | 100 100 100 . 100 Level 1 . | . . . . . Level 2 . | . . . . . Level 3 . | . . . . . Level 4 . | . . . . . Level 5 . | . . . . . High Security . | . . . . . Max Security . | . . . . . Peak Influence 60 | 5 15 60 . 59 Initial . | . . . . . Average 10 | . 1 13 . 39 Influence Increases 175 | 5 21 70 . 79 Destroy 0b10 Robot/C 120 | . . 60 . 60 Destroy 0b10 Robot/NC 5 | 5 . . . . Destroy Leader 20 | . . 10 . 10 Allied During Kill 9 | . . . . 9 Successful Hack 6 | . 6 . . . Lose Combat Pursuer 15 | . 15 . . . Influence Decreases 146 | 5 21 70 . 50 Time Decay 126 | 5 21 70 . 30 Lost Ally 20 | . . . . 20 Squads Dispatched 1 | . 1 . . . Investigation . | . . . . . Extermination . | . . . . . Reinforcement 1 | . 1 . . . Assault . | . . . . . Garrison . | . . . . . Intercept . | . . . . . Searches Triggered . | . . . . . Construction Impeded . | . . . . . Haulers Reinforced . | . . . . . Active Scanning Responses . | . . . . . Cargo Convoy Interrupts . | . . . . . Stealth | -11 -10 -10 -10 -9 --------- Run | Yrd Mat Min Exi Min Distress Signals 1 | . 1 . . . Communications Jammed . | . . . . . Distress Signals . | . . . . . Times Spotted 14 | . 4 3 . 7 Peak Tracking Total 3 | . 3 3 . 3 Tactical Retreats 1 | . 1 . . . Traps | -11 -10 -10 -10 -9 ------- Run | Yrd Mat Min Exi Min Traps Triggered . | . . . . . Indirectly . | . . . . . Trap Hack Attempts . | . . . . . Triggered . | . . . . . Disarmed . | . . . . . Reprogrammed . | . . . . . Reused . | . . . . . Traps Extracted . | . . . . . Installed . | . . . . . Triggered . | . . . . . Machines | -11 -10 -10 -10 -9 ---------- Run | Yrd Mat Min Exi Min Machines Disabled . | . . . . . Max in Single Turn . | . . . . . Machines Repaired . | . . . . . Machines Dismantled . | . . . . . Machines Sabotaged . | . . . . . Overloaded Fab Kills . | . . . . . Hacking | -11 -10 -10 -10 -9 --------- Run | Yrd Mat Min Exi Min Machines Accessed 3 | . 2 . 1 . Terminals 2 | . 2 . . . Fabricators . | . . . . . Repair Stations . | . . . . . Recycling Units . | . . . . . Scanalyzers . | . . . . . Garrison Access . | . . . . . Total Hacks 4 | . 3 . 1 . Successful 3 | . 2 . 1 . Failed 1 | . 1 . . . Catastrophic . | . . . . . Database Lockouts . | . . . . . Manual 3 | . 2 . 1 . Terminals 3 | . 3 . . . Fabricators . | . . . . . Repair Stations . | . . . . . Recycling Units . | . . . . . Scanalyzers . | . . . . . Garrison Access . | . . . . . Terminal Hacks 3 | . 2 . 1 . Hauler Manifests 1 | . 1 . . . Zone Layout 1 | . 1 . . . Proto ID Catalog 1 | . . . 1 . Fabricator Hacks . | . . . . . Repair Station Hacks . | . . . . . Recycling Unit Hacks . | . . . . . Scanalyzer . | . . . . . Garrison Access Hacks . | . . . . . Unauthorized Hacks . | . . . . . Terminals . | . . . . . Fabricators . | . . . . . Repair Stations . | . . . . . Recycling Units . | . . . . . Scanalyzers . | . . . . . Garrison Access . | . . . . . Data Cores Recovered . | . . . . . Used . | . . . . . Hacking Detections 1 | . 1 . . . Full Trace Events . | . . . . . Feedback Events . | . . . . . Feedback Blocked . | . . . . . Robot Schematics Acquired . | . . . . . Robots Built . | . . . . . Authchips . | . . . . . Time . | . . . . . Total Robot Build Rating . | . . . . . Part Schematics Acquired . | . . . . . Parts Built . | . . . . . Authchips . | . . . . . Time . | . . . . . Total Part Build Rating . | . . . . . Parts Repaired . | . . . . . Time . | . . . . . Parts Recycled . | . . . . . Recycled Matter . | . . . . . Retrieved Matter . | . . . . . Retrieved Components . | . . . . . Parts Scanalyzed . | . . . . . Part Schematics Acquired . | . . . . . Parts Damaged . | . . . . . Bothacking | -11 -10 -10 -10 -9 ------------ Run | Yrd Mat Min Exi Min Used RIF Installer . | . . . . . Robots Hacked . | . . . . . Non-combat . | . . . . . Combat . | . . . . . Robot Hacks Applied . | . . . . . Relay Couplers Released . | . . . . . Fabnet Peak Effective % . | . . . . . Robots Rewired . | . . . . . Allies Hacked . | . . . . . Hacks Repelled . | . . . . . Allies | -11 -10 -10 -10 -9 -------- Run | Yrd Mat Min Exi Min Total Allies 3 | . . 3 . . Largest Group 3 | . . 3 3 3 Highest-Rated Group 40 | . . 40 40 40 Highest-Rated Ally 16 | . . 16 16 16 Total Orders . | . . . . . Ally Attacks 16 | . . . . 16 Total Damage 167 | . . . . 167 Kills 3 | . . . . 3 Allies Corrupted . | . . . . . Allies Melted . | . . . . . Intel | -11 -10 -10 -10 -9 ------- Run | Yrd Mat Min Exi Min Active Infowar (turns) 1037 | 24 198 306 458 51 Seismic 1037 | 24 198 306 458 51 Robot Analysis Total . | . . . . . Derelict Logs Recovered 1 | . . . . 1 Drone Launches . | . . . . . Drone Recoveries . | . . . . . Exploration | -11 -10 -10 -10 -9 ------------- Run | Yrd Mat Min Exi Min Turns Passed 1123 | 85 198 306 458 76 Spaces Moved 844 | 57 144 233 353 57 Core 7 | 7 . . . . Treads . | . . . . . Legs 540 | 50 144 233 113 . Wheels 297 | . . . 240 57 Hover . | . . . . . Flight . | . . . . . Fastest Speed 50 | 50 120 120 120 130 Average Speed 122 | 111 120 120 126 130 Slowest Speed 130 | 120 120 120 130 130 Overloaded Moves . | . . . . . Propulsion Burnouts . | . . . . . Robots Hopped . | . . . . . Potential Cave-ins . | . . . . . Cave-ins Triggered . | . . . . . Exploration Rate (%) 40 | 4 33 56 70 37 Regions Visited 4 Branch Regions 3 Pre-discovered Areas 1 | . . 1 . . Known Exits Taken . | . . . . . Unknown Exits Taken 4 | 1 1 1 1 . Scrap Searched 1 | . . 1 . . Spaces Dug . | . . . . . Terrain Destroyed . | . . . . . Melee . | . . . . . Projectile . | . . . . . AOE . | . . . . . Terrain Rammed . | . . . . . Walls Destroyed . | . . . . . Machines Disabled . | . . . . . Actions | -11 -10 -10 -10 -9 --------- Run | Yrd Mat Min Exi Min Total 907 | 71 169 247 362 58 Wait 36 | . 24 9 3 . Move 840 | 56 143 232 352 57 Hop . | . . . . . Pick Up 11 | 6 2 . 3 . Fast Attach 7 | 7 . . . . Attach . | . . . . . Detach . | . . . . . Swap 4 | . . . 3 1 Drop 1 | . . . 1 . Fire 8 | 2 . 6 . . Melee . | . . . . . Ram . | . . . . . Kick . | . . . . . Crush . | . . . . . Escape Stasis . | . . . . . Rewire . | . . . . . Trap . | . . . . . Miscellaneous . | . . . . . Route ------- -11/Scrapyard -10/Materials -10/Mines (discovered 3 exits: [*Mat x2] / *Exi) -10/Exiles -9/Mines History --------- Turn | Location | Event 4 | -11/Scrapyard | Discovered new exit (range 16) 86 | -11/Scrapyard | Entered Materials 186 | -10/Materials | Discovered new exit (range 17) 284 | -10/Materials | Entered Mines 315 | -10/Mines | Build established: Mutant 383 | -10/Mines | Assisted by bots powering up and referring to "LRC-V3" 550 | -10/Mines | Discovered new exit (range 8) 554 | -10/Mines | Learned location of Storage (-7) 558 | -10/Mines | Discovered new exit (range 13) 576 | -10/Mines | Deemed a non-threat by the Exiles lab entrance 576 | -10/Mines | Discovered new exit (range 5) 590 | -10/Mines | Entered Exiles 590 | -10/Exiles | Accompanied by 3 allies 619 | -10/Exiles | Met 8R-AWN 641 | -10/Exiles | Met EX-HEX 672 | -10/Exiles | Met EX-BIN 689 | -10/Exiles | Aligned with FarCom system 690 | -10/Exiles | Given EX-Vault access code 720 | -10/Exiles | Opened EX-Vault 735 | -10/Exiles | Found Firepult 762 | -10/Exiles | Warned to stay clear of 0b10 Research branches 900 | -10/Exiles | Met EX-DEC 1034 | -10/Exiles | Discovered new exit (range 10) 1048 | -10/Exiles | Left Exiles lab with Firepult 1048 | -10/Exiles | Entered Mines 1048 | -9/Mines | Accompanied by 3 allies 1059 | -9/Mines | Met a Derelict bent on vengeance 1098 | -9/Mines | Learned Materials trap positions 1124 | -9/Mines | Self-destructed Last Messages --------------- move in here and I'll invert your atomic chain! 00902_ EX-DEC: "Oops, I hope HEX didn't hear that..." 01009_ Extracted 2 energy. 01010_ Acquired Hcp. Battery. 01011_ Extracted 2 energy. 01013_ Acquired Hcp. Battery. 01034_ EXIT=FOUND LOCATION=UNKNOWN GOAL=ESCAPE 01048_ Receiving FarCom transmissions... 01050_ G-47 Trooper suffers critical hit (Burn). 01050_ G-47 Trooper destroyed. 01052_ Trooper 1a destroyed. 01094_ K-01 Serf collects debris. 01098_ Acquired derelict log, extracted data. Data stored: Materials trap records. 01098_ K-01 Serf collects debris. Map ----- +----------------------------------------------------+ | ?????????????????????????????????????????????????? | | ?????????????????????????????????????????????????? | | ?????????????????????????????????????????????????? | | ?????????????????????????????????????????????????? | | ?????????????????????????????????????????????????? | | ?????????????????????????????????????????????????? | | ?????????????????????????????????????????????????? | | ?????????????????????????????????????????????????? | | ?????????????????????????????????????????????????? | | ???????????????????????????g?????????????????????? | | ?????????????????????????????????????????????????? | | ???????????????????????????? ???????????????????? | | ??????????????????????????? g ???????????????????? | | ???????????????????????????b ???????????????????? | | ??????????????????????????? ???????????????????? | | ??????????????????????????? ????????????????????? | | ??????????????????????????? ????????????????????? | | ?????????????????????????? #????????????????????? | | ?????????????????????????? #????????????????????? | | ?????????????????????????? #????????????????????? | | ?????????????????????????? #????????????????????? | | ????????# ??????????????? #????????????????????? | | ????????# ????????????### ##???????????????????? | | ????????# ??????????## ##??????????????????? | | ????????# #?????????# #??????????????????? | | ????????? #????????# @ ##?????????????????? | | ??#???????? #??????## ###???????????????? | | ??# ????????# #######g #???????????????? | | ??# #####????# ## g #??????????????? | | ??# #????# """ #?????????????? | | ??? #????# k """ #????????????? | | ?????# ####### """ #???????????? | | ?????# ???????????? | | ?????# ## ???????????? | | ?????# ####### ##?? ???????????? | | ?????# #?????## #???????????????? | | ?????# #??????### #???????????????? | | ?????# ########### ???????????????? | | ###??# #?## ???????????????? | | ##?# ####### #??# #???????????????? | | #?# #??????????# r ##????????????????? | | ### #?????????? ##?????????????????? | | ## #?????????? ??????????????????? | | ##????????? ???????????????????? | | #????????? ###????????????????????? | | ## #?????????# ##??????????????????????? | | #### ##?????????? #???????????????????????? | | #??#####???????????? ???????????????????????????? | | #????????????????????????????????????????????????? | | #????????????????????????????????????????????????? | +----------------------------------------------------+ Best States ------------- Heat Dissipation 25 Energy Generation 10 Energy Capacity 250 Matter Stores 275 Matter Capacity 300 Sight Range 16 Terrain Scan Density 10 Armor Coverage 150 Evasion (%) 55 Item Schematics ----------------- None Robot Schematics ------------------ None Fabricated ------------ Nothing Repaired ---------- Nothing Alien Tech Used ----------------- None Achievements -------------- None Challenges ------------ None Game ------ Seed HugeThunderAutocannon Manual? 0 Play Time 00:05:44 Cumulative 238.3 hours Start 2025.09.15 @ 23:10:23 End 2025.09.16 @ 14:10:52 Sessions 3 Manual Loads 0 Difficulty Rogue Special Mode None Game No. 248 Rogue 248 Adventurer 0 Explorer 0 Win Type - Total 3 Types 3/0/0/0/0/0/0/0/0/0 Lore% 74 Gallery% 71 Achievement% 66 Wizard Run 0 Options --------- Layout 2 ASCII 0 Keyboard 1 Movement Vi Keybinds 0 Fullscreen 2 Font 24/Terminus Map View 50x44 Zoom Use 0% Tactical HUD 1 Map Filters NONE Filters NONE Steam X RUN: 6ce5ea41-14ff-44a1-b094-75f2877cec50